Cogmind - Beta 16 --- EXPLORER MODE // 2025.11.18 @ 13:12:20 Player: K.K.Y. Result: Destroyed by Y-45 Defender with Beam Rifle Performance ------------- Evolutions (2) 1000 Regions Visited (5) 1000 Robots Destroyed (15) 75 Value Destroyed (441) 441 Prototype IDs (2) 40 Alien Tech Used (0) 0 Bonus (14) 14 TOTAL SCORE: 2570 Bonus ------- Follower Combat Kills 14 Cogmind --------- Core Integrity 0/550 Matter 265/300 Energy 100/100 System Corruption 0% Temperature Cool (9) Movement Core (900) Ox17 Location -8/Materials Parts ------- > --- POWER (2) -------- (None) > --- PROPULSION (4) --- (None) > --- UTILITY (4) ------ High-capacity Storage Unit Improved Utility Shielding Light Armor Plating Hardened Medium Armor Plating > --- WEAPON (2) ------- (None) > --- INVENTORY (20) --- Cryofiber Web Huge Storage Unit Humpback Compact Matter Pod (150) Advanced Visual Processing Unit Makeshift Sensor Array Improved Terrain Scan Processor Makeshift Cloaking Device Peak State ------------ > --- POWER ------------ Ion Engine > --- PROPULSION ------- Light Treads Light Treads Light Treads > --- UTILITY ---------- High-capacity Storage Unit Particle Charger > --- WEAPON ----------- EM Pulse Cannon Flak Cannon > --- INVENTORY -------- Cryofiber Web Humpback Compact Matter Pod Advanced Visual Processing Unit Makeshift Sensor Array Makeshift Cloaking Device Light Armor Plating Hardened Medium Armor Plating Medium Laser Medium Laser Medium Laser Mining Laser [Rating: 17] Favorites ----------- Power Ion Engine Engine Ion Engine Propulsion Light Treads Treads Light Treads Leg Aluminum Leg Utility High-capacity Storage Unit Device Particle Charger Storage High-capacity Storage Unit Protection Hardened Medium Armor Plating Weapon Medium Laser Energy Gun Medium Laser Energy Cannon EM Pulse Cannon Ballistic Cannon Flak Cannon Special Weapon Mining Laser Build | -11 -10 -10 -10 -9 -8 ------- Run | Yrd Mat Min Exi Min Mat Slots Evolved 5 | . 1 . . . 4 Power 1 | . . . . . 1 Propulsion 2 | . 1 . . . 1 Utility 2 | . . . . . 2 Weapon . | . . . . . . Parts Attached 27 | 6 3 4 6 4 4 Power 1 | 1 . . . . . Engine 1 | 1 . . . . . Core . | . . . . . . Reactor . | . . . . . . Propulsion 9 | 2 . 3 . 4 . Treads 6 | 2 . 3 . 1 . Leg 3 | . . . . 3 . Wheel . | . . . . . . Hover . | . . . . . . Flight . | . . . . . . Utility 8 | 2 1 1 3 . 1 Device 2 | . . . 2 . . Storage 2 | . 1 . 1 . . Processor . | . . . . . . Hackware . | . . . . . . Protection 4 | 2 . 1 . . 1 Artifact . | . . . . . . Weapon 9 | 1 2 . 3 . 3 Energy Gun 6 | 1 2 . . . 3 Energy Cannon 1 | . . . 1 . . Ballistic Gun . | . . . . . . Ballistic Cannon 1 | . . . 1 . . Launcher . | . . . . . . Special Weapon 1 | . . . 1 . . Impact Weapon . | . . . . . . Slashing Weapon . | . . . . . . Piercing Weapon . | . . . . . . Special Melee Weapon . | . . . . . . Unidentified Prototypes . | . . . . . . Parts Lost 13 | . . . . 6 7 Power 1 | . . . . 1 . Propulsion 3 | . . . . 2 1 Utility 1 | . . . . 1 . Weapon 8 | . . . . 2 6 Highest Loss Streak 6 | . . . . 6 5 To Critical Strikes . | . . . . . . Average Backups 10 | 1 3 9 11 12 11 Power . | . . . . . . Propulsion . | . . . . . . Utility 6 | . 1 3 6 8 9 Weapon 4 | . 2 5 5 3 2 Tool/Special . | . . . . . . Unused Backups 12 | . . 4 . 1 7 Power . | . . . . . . Propulsion 1 | . . . . 1 . Utility 8 | . . 1 . . 7 Weapon 3 | . . 3 . . . Tool/Special . | . . . . . . Average Slot Usage (%) 73 | . 81 99 96 52 22 Engine 6 | . 12 12 12 . . Treads 23 | . 25 36 37 10 2 Leg 1 | . . . . 2 . Device 1 | . . . 3 . . Storage 11 | . 6 12 12 12 8 Protection 6 | . 18 12 8 . 1 Energy Gun 19 | . 18 25 16 19 8 Special Weapon 2 | . . . 5 3 . Peak Build Rating 17 | 6 7 12 15 17 10 Average Rating 9 | 4 6 10 12 8 6 On Entrance 7 | . 6 7 12 12 8 Avg Prop Armor Cover (%) 7 | . . . . 7 . Naked Turns . | . . . . . . Heaviest Build 60 | 13 22 27 57 60 53 Greatest Support 60 | 40 40 60 60 60 23 Greatest Overweight (x) 17 | . . . . 14 17 Average Overweight (x) . | . . . . 1 5 Largest Inventory Capacity 20 | 5 10 10 20 20 20 Average Capacity 15 | 5 7 10 15 20 20 Most Carried 18 | 5 7 10 14 18 15 Average Carried 11 | 1 3 9 11 13 12 Final Capacity 20 | 5 10 10 20 20 20 Final Carried 14 | 1 7 10 14 14 9 Class Distribution -------------------- 100% | Hacker-Mutant Dominant Class ---------------- Hacker-Mutant | -10/Materials Hacker-Mutant | -10/Mines Hacker-Mutant | -10/Exiles Hacker-Mutant | -9/Mines Hacker-Mutant | -8/Materials Resources | -11 -10 -10 -10 -9 -8 ----------- Run | Yrd Mat Min Exi Min Mat Matter Collected 503 | 212 78 40 . 121 52 Remotely . | . . . . . . Salvage Created 512 | . 188 25 . 39 260 Parts 29 | . 11 1 . . 17 Haulers Intercepted . | . . . . . . Recyclers Shooed . | . . . . . . Parts Field Recycled . | . . . . . . Retrieved Matter . | . . . . . . Parts Self-Destructed . | . . . . . . Prevented . | . . . . . . Parts Restored . | . . . . . . Kills | -11 -10 -10 -10 -9 -8 ------- Run | Yrd Mat Min Exi Min Mat Combat Hostiles Destroyed 14 | . 3 . . 4 7 Guns 11 | . 3 . . 1 7 Cannons 3 | . . . . 3 . Classes Destroyed 8 | . 2 1 . 2 3 Worker 1 | . . 1 . . . Operator 1 | . . . . . 1 Watcher 2 | . 2 . . . . Swarmer 3 | . . . . . 3 Grunt 5 | . 3 . . . 2 Sentry 2 | . . . . . 2 Demolisher 1 | . . . . 1 . Assembled 3 | . . . . 3 . Best Kill Streak 2 | . 2 1 . 2 2 Combat Bots Only 2 | . 2 . . 2 2 Max Kills in Single Turn 1 | . 1 1 . 1 1 Gunslinging . | . . . . . . Exploded . | . . . . . . Melee . | . . . . . . Uniques/NPCs Destroyed . | . . . . . . Combat | -11 -10 -10 -10 -9 -8 -------- Run | Yrd Mat Min Exi Min Mat Hostile Shots Fired 258 | . 19 4 . 51 184 Missed 65 | . 5 1 . 11 48 Hits 193 | . 14 3 . 40 136 Melee 4 | . . . . 4 . Projectile 189 | . 14 3 . 36 136 AOE 27 | . . . . 27 . Critical Strikes 4 | . 1 . . 1 2 Part Disruptions 2 | . . . . 2 . Damage Taken 2190 | . 127 27 . 884 1152 Core 723 | . . . . 168 555 Absorbed by Shields . | . . . . . . Ignored by Resistances 1322 | . 78 15 . 514 715 Core Remaining (%) 66 | 100 . . . 32 . Volleys Fired 109 | . 15 2 37 18 37 Largest 2 | . 2 2 2 2 2 Hottest 163 | . 100 100 163 150 100 Shots Fired 149 | . 22 4 45 25 53 Gun 93 | . 22 4 6 8 53 Cannon 19 | . . . 4 15 . Launcher . | . . . . . . Special 37 | . . . 35 2 . Kinetic 6 | . . . 2 4 . Thermal 119 | . 14 4 41 10 50 Explosive . | . . . . . . Electromagnetic 24 | . 8 . 2 11 3 Robot Hit Streak 15 | . 10 7 . 10 15 Robot Miss Streak 3 | . 2 . . 3 3 Penetration Max . | . . . . . . Secondary Targets . | . . . . . . Shots Hit Robots 68 | . 18 1 . 11 38 Core Hits 36 | . 11 1 . 9 15 Critical Kills . | . . . . . . Critical Parts Destroyed . | . . . . . . Critical Strikes 2 | . 1 . . . 1 Burn 2 | . 1 . . . 1 Melee Attacks . | . . . . . . Impact . | . . . . . . Slashing . | . . . . . . Piercing . | . . . . . . Sneak Attacks . | . . . . . . Combat Hostiles . | . . . . . . Follow-up Attacks . | . . . . . . Damage Inflicted 1121 | . 290 15 . 366 450 Guns 734 | . 247 13 . 24 450 Cannons 237 | . . . . 237 . Explosions 128 | . 43 . . 85 . Melee . | . . . . . . Ramming 22 | . . 2 . 20 . Kinetic 70 | . . . . 70 . Thermal 706 | . 170 13 . 109 414 Explosive . | . . . . . . Electromagnetic 323 | . 120 . . 167 36 Impact . | . . . . . . Slashing . | . . . . . . Piercing . | . . . . . . Highest Corruption . | . . . . . . Average Corruption . | . . . . . . Corruption Purged . | . . . . . . Corruption Blocked . | . . . . . . Overload Shots . | . . . . . . Overflow Damage 21 | . 9 . . 12 . Projectiles 12 | . . . . 12 . Explosions 9 | . 9 . . . . Melee . | . . . . . . Knockbacks 5 | . . . . 5 . Impact . | . . . . . . Kinetic 3 | . . . . 3 . Secondary 2 | . . . . 2 . Self-Inflicted Damage . | . . . . . . Shots . | . . . . . . Rammed 3 | . . 1 . 2 . Targets Rammed 4 | . . 1 . 3 . Kicked 1 | . . . . 1 . Crushed . | . . . . . . Highest Temperature 261 | . 261 48 244 181 204 Average Temperature 83 | . 101 25 107 43 60 Received Heat Transfer 1023 | . 129 18 . 129 747 Effects 1 | . . . 1 . . Interference 1 | . . . 1 . . Siege Activations . | . . . . . . Martial Activations . | . . . . . . Shielding Activations . | . . . . . . Robots Disrupted . | . . . . . . Combat Hostiles . | . . . . . . Robots Corrupted . | . . . . . . Combat Hostiles . | . . . . . . Parts Fried 1 | . 1 . . . . Impact Corruptions . | . . . . . . Robots Melted . | . . . . . . Combat Hostiles . | . . . . . . Parts Melted 2 | . 1 . . . 1 Heat Transferred 2050 | . 544 37 . 174 1295 Parts Sabotaged . | . . . . . . Parts Stolen . | . . . . . . Parts Stripped . | . . . . . . Power Chain Reactions 2 | . 1 . . 1 . Alert | -11 -10 -10 -10 -9 -8 ------- Run | Yrd Mat Min Exi Min Mat Maximum Alert Level . | . . . . . . Low Security (%) 100 | 100 100 100 . 100 100 Level 1 . | . . . . . . Level 2 . | . . . . . . Level 3 . | . . . . . . Level 4 . | . . . . . . Level 5 . | . . . . . . High Security . | . . . . . . Max Security . | . . . . . . Peak Influence 55 | . 35 5 . 53 55 Initial . | . . . . . . Average 2 | . 7 . . 1 10 Influence Increases 419 | . 113 5 . 77 224 Destroy 0b10 Robot/C 260 | . 60 . . 60 140 Destroy 0b10 Robot/NC 20 | . 10 5 . . 5 Destroy Leader 54 | . 14 . . 10 30 Allied During Kill 3 | . . . . 3 . Successful Hack 15 | . 11 . . . 4 Disable Machine 4 | . . . . 4 . Destroy Structure 3 | . 3 . . . . Lose Combat Pursuer 60 | . 15 . . . 45 Influence Decreases 404 | . 113 5 . 77 209 Time Decay 337 | . 113 5 . 50 169 Lost Part 40 | . . . . . 40 Lost Ally 27 | . . . . 27 . Squads Dispatched 3 | . . 1 . 1 1 Investigation 1 | . . 1 . . . Extermination . | . . . . . . Reinforcement 2 | . . . . 1 1 Assault . | . . . . . . Garrison . | . . . . . . Intercept . | . . . . . . Searches Triggered . | . . . . . . Construction Impeded 1 | . . . . 1 . Haulers Reinforced . | . . . . . . Active Scanning Responses . | . . . . . . Cargo Convoy Interrupts . | . . . . . . Stealth | -11 -10 -10 -10 -9 -8 --------- Run | Yrd Mat Min Exi Min Mat Distress Signals 3 | . 1 . . . 2 Communications Jammed . | . . . . . . Distress Signals . | . . . . . . Times Spotted 48 | . 7 1 . 27 13 Peak Tracking Total 16 | . 2 1 . 16 4 Tactical Retreats 5 | . 1 . . 1 3 Traps | -11 -10 -10 -10 -9 -8 ------- Run | Yrd Mat Min Exi Min Mat Traps Triggered 1 | . 1 . . . . Indirectly . | . . . . . . Trap Hack Attempts . | . . . . . . Triggered . | . . . . . . Disarmed . | . . . . . . Reprogrammed 6 | . 6 . . . . Reused . | . . . . . . Traps Extracted . | . . . . . . Installed . | . . . . . . Triggered . | . . . . . . Machines | -11 -10 -10 -10 -9 -8 ---------- Run | Yrd Mat Min Exi Min Mat Machines Disabled 2 | . 1 . . 1 . Max in Single Turn 1 | . 1 . . . . Machines Repaired . | . . . . . . Machines Dismantled . | . . . . . . Machines Sabotaged . | . . . . . . Overloaded Fab Kills . | . . . . . . Hacking | -11 -10 -10 -10 -9 -8 --------- Run | Yrd Mat Min Exi Min Mat Machines Accessed 11 | . 5 1 4 . 1 Terminals 6 | . 5 . . . 1 Fabricators . | . . . . . . Repair Stations . | . . . . . . Recycling Units . | . . . . . . Scanalyzers . | . . . . . . Garrison Access . | . . . . . . Total Hacks 69 | . 15 1 49 . 4 Successful 62 | . 10 1 49 . 2 Failed 7 | . 5 . . . 2 Catastrophic 1 | . 1 . . . . Database Lockouts . | . . . . . . Manual 3 | . . . . . 3 Terminals 19 | . 15 . . . 4 Fabricators . | . . . . . . Repair Stations . | . . . . . . Recycling Units . | . . . . . . Scanalyzers . | . . . . . . Garrison Access . | . . . . . . Terminal Hacks 62 | . 10 1 49 . 2 Record 49 | . . . 49 . . Robot Analysis 2 | . 1 . . . 1 Prototype ID Bank 1 | . 1 . . . . Open Door 1 | . . 1 . . . Branch Access Points 1 | . 1 . . . . Emergency Access Points 2 | . 2 . . . . Reprogram Traps 1 | . 1 . . . . Patrol Status 1 | . 1 . . . . Registered Prototypes 1 | . 1 . . . . Zone Layout 3 | . 2 . . . 1 Fabricator Hacks . | . . . . . . Repair Station Hacks . | . . . . . . Recycling Unit Hacks . | . . . . . . Scanalyzer . | . . . . . . Garrison Access Hacks . | . . . . . . Unauthorized Hacks . | . . . . . . Terminals . | . . . . . . Fabricators . | . . . . . . Repair Stations . | . . . . . . Recycling Units . | . . . . . . Scanalyzers . | . . . . . . Garrison Access . | . . . . . . Data Cores Recovered 1 | . . . . . 1 Used . | . . . . . . Hacking Detections 5 | . 4 . . . 1 Full Trace Events 2 | . 2 . . . . Feedback Events . | . . . . . . Feedback Blocked . | . . . . . . Robot Schematics Acquired . | . . . . . . Robots Built . | . . . . . . Authchips . | . . . . . . Time . | . . . . . . Total Robot Build Rating . | . . . . . . Part Schematics Acquired . | . . . . . . Parts Built . | . . . . . . Authchips . | . . . . . . Time . | . . . . . . Total Part Build Rating . | . . . . . . Part Studies Acquired . | . . . . . . Parts Repaired . | . . . . . . Time . | . . . . . . Parts Recycled . | . . . . . . Recycled Matter . | . . . . . . Retrieved Matter . | . . . . . . Retrieved Components . | . . . . . . Parts Scanalyzed . | . . . . . . Part Schematics Acquired . | . . . . . . Parts Damaged . | . . . . . . Bothacking | -11 -10 -10 -10 -9 -8 ------------ Run | Yrd Mat Min Exi Min Mat Used RIF Installer . | . . . . . . Robots Hacked . | . . . . . . Non-combat . | . . . . . . Combat . | . . . . . . Robot Hacks Applied . | . . . . . . Relay Couplers Released . | . . . . . . Fabnet Peak Effective % . | . . . . . . Robots Rewired 1 | . . . 1 . . Allies Hacked . | . . . . . . Hacks Repelled . | . . . . . . Allies | -11 -10 -10 -10 -9 -8 -------- Run | Yrd Mat Min Exi Min Mat Total Allies 4 | . . 3 1 . . Largest Group 4 | . . 3 4 4 . Highest-Rated Group 48 | . . 40 48 48 . Highest-Rated Ally 16 | . . 16 16 16 . Total Orders . | . . . . . . Ally Attacks 25 | . . . . 25 . Total Damage 192 | . . . . 192 . Kills 2 | . . . . 2 . Allies Corrupted . | . . . . . . Allies Melted . | . . . . . . Intel | -11 -10 -10 -10 -9 -8 ------- Run | Yrd Mat Min Exi Min Mat Active Infowar (turns) . | . . . . . . Robot Analysis Total 2 | . 1 . . . 1 Derelict Logs Recovered 3 | . . 2 . 1 . Drone Launches . | . . . . . . Drone Recoveries . | . . . . . . Exploration | -11 -10 -10 -10 -9 -8 ------------- Run | Yrd Mat Min Exi Min Mat Turns Passed 5393 | 64 354 1393 1176 1903 503 Spaces Moved 2399 | 44 192 839 598 632 94 Core 62 | 16 . . . 11 35 Treads 2225 | 28 192 839 598 509 59 Legs 112 | . . . . 112 . Wheels . | . . . . . . Hover . | . . . . . . Flight . | . . . . . . Fastest Speed 50 | 50 160 160 160 160 240 Average Speed 191 | 120 160 160 160 245 418 Slowest Speed 900 | 160 160 160 160 750 900 Overloaded Moves . | . . . . . . Propulsion Burnouts . | . . . . . . Robots Hopped . | . . . . . . Potential Cave-ins . | . . . . . . Cave-ins Triggered . | . . . . . . Exploration Rate (%) 56 | 3 37 100 94 95 11 Regions Visited 5 Branch Regions 3 Pre-discovered Areas 2 | . . . 1 1 . Known Exits Taken 5 | 1 1 1 1 1 . Unknown Exits Taken . | . . . . . . Scrap Searched 4 | . . 2 . 2 . Spaces Dug 3 | . . . 1 2 . Terrain Destroyed 8 | . 2 . 2 4 . Melee . | . . . . . . Projectile 4 | . . . 2 2 . AOE 4 | . 2 . . 2 . Terrain Rammed . | . . . . . . Walls Destroyed . | . . . . . . Machines Disabled . | . . . . . . Actions | -11 -10 -10 -10 -9 -8 --------- Run | Yrd Mat Min Exi Min Mat Total 2972 | 55 217 889 705 955 151 Wait 366 | . . 26 53 278 9 Move 2394 | 43 191 838 597 631 94 Hop . | . . . . . . Pick Up 36 | 6 7 10 3 8 2 Fast Attach 1 | 1 . . . . . Attach 28 | 5 2 1 4 8 8 Detach 11 | . 1 . 5 4 1 Swap 7 | . 1 3 2 1 . Drop 14 | . . 8 2 4 . Fire 109 | . 15 2 37 18 37 Melee . | . . . . . . Ram . | . . . . . . Kick 1 | . . . . 1 . Crush 3 | . . 1 . 2 . Escape Stasis . | . . . . . . Rewire 2 | . . . 2 . . Trap . | . . . . . . Miscellaneous . | . . . . . . Route ------- -11/Scrapyard -10/Materials (discovered 2 exits: Mat / *Min) -10/Mines (discovered 4 exits: *Mat x2 / *Exi / *Sub) -10/Exiles -9/Mines (discovered 2 exits: *Mat x2) -8/Materials (discovered 2 exits: Fac / *Sto) History --------- Turn | Location | Event 5 | -11/Scrapyard | Identified exit to Materials 5 | -11/Scrapyard | Discovered exit to Materials (range 16) 65 | -11/Scrapyard | Entered Materials 65 | -10/Materials | Evolved 1 slot: Propulsion x1 141 | -10/Materials | Identified exit to Mines 314 | -10/Materials | Build established: Hacker-Mutant 374 | -10/Materials | Identified exit to Materials 374 | -10/Materials | Discovered exit to Materials (range 20) 419 | -10/Materials | Entered Mines 457 | -10/Mines | Found a hidden stash of uninstalled traps 513 | -10/Mines | Learned Materials trap positions 660 | -10/Mines | Discovered exit to Materials (range 5) 703 | -10/Mines | Discovered exit to Materials (range 4) 754 | -10/Mines | Joined a pair of Derelicts in attacking an 0b10 outpost 887 | -10/Mines | Learned location of 1 exit from Materials 925 | -10/Mines | Met a Derelict shopkeep closing up shop 1125 | -10/Mines | Deemed a non-threat by the Exiles lab entrance 1125 | -10/Mines | Identified exit to Exiles 1125 | -10/Mines | Discovered exit to Exiles (range 5) 1278 | -10/Mines | Assisted by bots powering up and referring to "LRC-V3" 1465 | -10/Mines | Identified exit to Subcaves 1465 | -10/Mines | Discovered exit to Subcaves (range 9) 1812 | -10/Mines | Entered Exiles 1812 | -10/Exiles | Found Exiles lab destroyed 1812 | -10/Exiles | Accompanied by 3 allies 2211 | -10/Exiles | Learned location of Zion (-7) 2965 | -10/Exiles | Identified exit to Mines 2965 | -10/Exiles | Discovered exit to Mines (range 14) 2988 | -10/Exiles | Entered Mines 2988 | -9/Mines | Accompanied by 4 allies 2992 | -9/Mines | Identified exit to Materials 2992 | -9/Mines | Discovered exit to Materials (range 4) 2993 | -9/Mines | Assembled infested the area 2998 | -9/Mines | Assisted by a Guerilla fighting off Assembled 3019 | -9/Mines | Met a Derelict bent on vengeance 3075 | -9/Mines | Lost 4 allies 3094 | -9/Mines | Core integrity fell below 50% 3137 | -9/Mines | Lost 6 parts (1p2n1u2w) 3602 | -9/Mines | Learned location of Storage (-8) 3611 | -9/Mines | Learned 4 Materials zone layouts 4879 | -9/Mines | Discovered exit to Materials (range 5) 4891 | -9/Mines | Entered Materials 4891 | -8/Materials | Evolved 4 slots: Power x1, Propulsion x1, Utility x2 4892 | -8/Materials | Identified exit to Factory 4894 | -8/Materials | Loaded intel: 21 trap records 4959 | -8/Materials | Identified exit to Storage 4959 | -8/Materials | Discovered exit to Storage (range 10) 5140 | -8/Materials | Lost 5 parts (1n4w) 5257 | -8/Materials | Core integrity fell below 50% 5313 | -8/Materials | Core integrity fell below 20% 5394 | -8/Materials | Destroyed by Y-45 Defender with Beam Rifle Last Messages --------------- 05125_ G-47 Trooper IFF system glitched. 05127_ G-47 Trooper destroyed. 05127_ U-05 Engineer builds a Door. 05129_ G-47 Trooper suffers critical hit (Burn). 05131_ G-47 Trooper destroyed. 05131_ U-05 Engineer builds a Door. 05161_ Acquired 15 matter. 05210_ W-25 Informer distress signal alerts nearby ally. 05262_ Med. Laser destroyed. 05277_ Mining Laser destroyed. 05289_ Y-45 Defender heat short circuits Lgt. Treads. 05291_ Y-45 Defender heat damages Beam Rifle. 05292_ Critical hit (Burn: +37). 05368_ K-01 Serf collects debris. 05375_ Acquired Imp. Utility Shielding. 05375_ K-01 Serf collects debris. 05391_ R-06 Scavenger collects Aluminum Leg. Map ----- +----------------------------------------------------+ | ?????????????????# #### ### #?????? | | ????????????????? #?????? | | ??????# "" "???? #?????? | | ??????# "Y "????##### #### #?????? | | ####### "" "????????# #??## ## #?????? | | ## ????#####+##### ## #?????? | | """" ########????# # ######?????? | | """" #??#####????# # ########???? | | """" #??# ????# # # #???? | | #??# ????# + # T #???? | | ######### ????# # # #???? | | # ????# """"" # + #???? | | + ????# """"" # # #???? | | # ????# """"" # # #???? | | ######### ????########### ###########? | | ????????# ????+ # !!! !#? | | ????????# ????########### # !! #? | | ###???#######????########### # !! #? | | #???# #????# # # ?? | | ##### ###### """"" # # """ """ #? | | %! % > + """"" # ^# """ """ #? | | ##### ###### """ + + """ """ #? | | #???# #????# %k Y# # #? | | #######+###????# %r # ####+##+##?? | | # ###????# r # #??? | | + # ????# %%@!# #??? | | # # ????########### #######+#??? | | ######### ??????????????# #??????????? | | %######### !!#????????????# #??????????? | | !!#????????????# #??????????? | | !!#????????????# #??????????? | | ####?????????????+ +??????????? | | #????????????????# #??????????? | | #????????????????# #??????????? | | +######## #????????????????####??????????? | | ??????????#??????????????????????????????? | | ?????????????????????????????????????????? | | ?????????????????????????????????????????? | | ?????????????????????????????????????????? | | ?????????????????????????????????????????? | | ?????????????????????????????????????????? | | ?????????????????????????????????????????? | | ?????????????????????????????????????????? | | | | | | | | | | | | | | | +----------------------------------------------------+ Best States ------------- Heat Dissipation 31 Energy Generation 10 Energy Capacity 250 Matter Stores 300 Matter Capacity 300 Sight Range 16 Terrain Scan Density 10 Base Temperature (-) 100 Armor Coverage 375 Resistance: KI 35 Resistance: TH 35 Resistance: EX 35 Resistance: EM 35 Resistance: I 35 Resistance: S 35 Resistance: P 35 Utility Shielding 66 Evasion (%) 50 Recoil Reduction 3 Particle Charging 15 Offensive Hacking 20 Item Schematics ----------------- None Robot Schematics ------------------ None Fabricated ------------ Nothing Repaired ---------- Nothing Studied --------- None Alien Tech Used ----------------- None Achievements -------------- None Challenges ------------ None Game ------ Seed SystemBarrageTether Manual? 0 Play Time 00:23:39 Cumulative 108.9 hours Start 2025.11.18 @ 12:51:17 End 2025.11.18 @ 13:12:20 Sessions 1 Manual Loads 0 Difficulty Explorer Special Mode None Game No. 124 Rogue 0 Adventurer 0 Explorer 124 Win Type - Total 0 Types 0/0/0/0/0/0/0/0/0/0 Lore% 62 Gallery% 61 Achievement% 47 Wizard Run 0 Options --------- Layout 1 ASCII 0 Keyboard 0 Movement Mouse Keybinds 0 Fullscreen 1 Font 24/Smallcaps Map View 50x35 Zoom Use 0% Tactical HUD 1 Map Filters NONE Filters NONE Steam 1 RUN: 5c44e511-ba41-4c33-a685-30c068b59d9c